[Event "World Senior chT-65 2019"]
[Site "Rhodes"]
[Date "2019.04.21"]
[Round "6.28"]
[White "Grevlund, Per"]
[Black "Hewson, Brian W R"]
[Result "1/2-1/2"]
[ECO "C02"]
[WhiteElo "1998"]
[BlackElo "2004"]
[Annotator "NA"]
[PlyCount "31"]
[EventDate "2019.04.16"]
[EventType "team-tourn"]
[EventCountry "GRE"]
[SourceTitle "playchess.com"]
[Source "ChessBase"]
[SourceQuality "1"]
[WhiteTeam "Denmark"]
[BlackTeam "England"]
[WhiteTeamCountry "DEN"]
[BlackTeamCountry "ENG"]
[TimeControl "40/5400+30:1800+30"]

1. e4 {[%emt 0:00:00]} c6 {[%emt 0:00:00]} 2. d4 {[%emt 0:00:00]} d5 {[%emt 0:00:00]} 3. e5 {[%emt 0:00:12]} Bf5 {[%emt 0:01:31]} 4. Bd3 {[%emt 0:00:29]} Bxd3 {[%emt 0:00:11]} 5. Qxd3 {[%emt 0:00:02]} e6 {[%emt 0:00:14]} 6. Nf3 {[%emt 0:01:55]} Qb6 {[%emt 0:04:42]} 7. O-O {[%emt 0:01:01]} c5 {[%emt 0:00:37]} 8. c3 {[%emt 0:01:56]} cxd4 {[%emt 0:00:19]} 9. cxd4 {[%emt 0:00:29]} Nc6 {[%emt 0:01:31]} 10. Nc3 {[%emt 0:04:24]} Nge7 {[%emt 0:12:57]} 11. Be3 {[%emt 0:02:36]} Nf5 {[%emt 0:00:59]} 12. Rac1 {[%emt 0:11:21]} Nxe3 {[%emt 0:00:38]} 13. fxe3 {[%emt 0:04:20]} Be7 {[%emt 0:01:23]} 14. Rf2 {[%emt 0:01:07]} O-O {[%emt 0:00:13]} 15. a3 {[%emt 0:09:44]} a5 {[%emt 0:06:24]} 16. Na4 {[%emt 0:03:16]} 1/2-1/2

[Event "World Senior chT-65 2019"]
[Site "Rhodes"]
[Date "2019.04.21"]
[Round "6.29"]
[White "Rooze, Jan"]
[Black "Vucenovic, Dragomir"]
[Result "1-0"]
[ECO "C54"]
[WhiteElo "2261"]
[BlackElo "2168"]
[Annotator "NA"]
[PlyCount "55"]
[EventDate "2019.04.16"]
[EventType "team-tourn"]
[EventCountry "GRE"]
[SourceTitle "playchess.com"]
[Source "ChessBase"]
[SourceQuality "1"]
[WhiteTeam "Belgium"]
[BlackTeam "Switzerland"]
[WhiteTeamCountry "BEL"]
[BlackTeamCountry "SUI"]
[TimeControl "40/5400+30:1800+30"]

1. e4 {[%emt 0:00:00]} e5 {[%emt 0:00:00]} 2. Nf3 {[%emt 0:00:00]} Nc6 {[%emt 0:00:00]} 3. Bc4 {[%emt 0:00:01]} Bc5 {[%emt 0:00:12]} 4. O-O {[%emt 0:00:21]} Nf6 {[%emt 0:00:28]} 5. d3 {[%emt 0:00:10]} d6 {[%emt 0:00:30]} 6. c3 {[%emt 0:02:55]} Bb6 {[%emt 0:02:04]} 7. a4 {[%emt 0:03:53]} a6 {[%emt 0:06:34]} 8. Na3 {[%emt 0:06:33]} O-O {[%emt 0:02:04]} 9. Bg5 {[%emt 0:02:15]} h6 {[%emt 0:13:42]} 10. Bh4 {[%emt 0:00:07]} Bg4 {[%emt 0:01:11]} 11. h3 {[%emt 0:04:30]} Bxf3 {[%emt 0:02:13]} 12. Qxf3 {[%emt 0:01:37]} g5 {[%emt 0:00:10]} 13. Bg3 {[%emt 0:00:33]} Kg7 {[%emt 0:00:47]} 14. Nc2 {[%emt 0:02:54]} Nh7 {[%emt 0:11:32]} 15. Ne3 {[%emt 0:08:55]} Ne7 {[%emt 0:03:20]} 16. d4 {[%emt 0:09:30]} exd4 {[%emt 0:04:17]} 17. cxd4 {[%emt 0:00:26]} f5 {[%emt 0:03:30]} 18. Nxf5+ {[%emt 0:03:24]} Nxf5 {[%emt 0:00:36]} 19. exf5 {[%emt 0:00:08]} Qf6 {[%emt 0:13:22]} 20. Qxb7 {[%emt 0:07:25]} Qxd4 {[%emt 0:15:37]} 21. a5 {[%emt 0:06:20]} Ra7 {[%emt 0:05:17]} 22. Qc6 {[%emt 0:00:27]} Bc5 {[%emt 0:00:39]} 23. b3 {[%emt 0:03:52]} Nf6 {[%emt 0:02:34]} 24. Rae1 {[%emt 0:00:33]} h5 {[%emt 0:10:34]} 25. Re7+ {[%emt 0:08:32]} Kh6 {[%emt 0:00:01]} 26. Re6 {[%emt 0:00:32]} h4 {[%emt 0:03:24]} 27. Be5 {[%emt 0:03:28]} Qd2 {[%emt 0:00:29]} 28. Bxf6 {[%emt 0:00:47]} 1-0

[Event "World Senior chT-65 2019"]
[Site "Rhodes"]
[Date "2019.04.21"]
[Round "6.30"]
[White "Staechelin, Ruedi"]
[Black "Van de Wynkele, Herman"]
[Result "0-1"]
[ECO "D20"]
[WhiteElo "2053"]
[BlackElo "2129"]
[Annotator "NA"]
[PlyCount "102"]
[EventDate "2019.04.16"]
[EventType "team-tourn"]
[EventCountry "GRE"]
[SourceTitle "playchess.com"]
[Source "ChessBase"]
[SourceQuality "1"]
[WhiteTeam "Switzerland"]
[BlackTeam "Belgium"]
[WhiteTeamCountry "SUI"]
[BlackTeamCountry "BEL"]
[TimeControl "40/5400+30:1800+30"]

1. e4 {[%emt 0:00:00]} e6 {[%emt 0:00:29]} 2. d4 {[%emt 0:00:38]} d5 {[%emt 0:00:05]} 3. exd5 {[%emt 0:01:14]} exd5 {[%emt 0:00:07]} 4. Nf3 {[%emt 0:00:23]} Bd6 {[%emt 0:00:12]} 5. c4 {[%emt 0:00:24]} dxc4 {[%emt 0:01:36]} 6. Bxc4 {[%emt 0:00:46]} Nf6 {[%emt 0:00:05]} 7. Qe2+ {[%emt 0:04:01]} Be7 {[%emt 0:00:49]} 8. O-O {[%emt 0:02:13]} O-O {[%emt 0:00:04]} 9. h3 {[%emt 0:02:07]} Nc6 {[%emt 0:00:49]} 10. Rd1 {[%emt 0:04:52]} Bf5 {[%emt 0:03:33]} 11. a3 {[%emt 0:01:08]} Bd6 {[%emt 0:04:41]} 12. Nc3 {[%emt 0:03:19]} Re8 {[%emt 0:03:21]} 13. Qf1 {[%emt 0:02:20]} Qd7 {[%emt 0:04:23]} 14. Bg5 {[%emt 0:01:59]} Ne4 {[%emt 0:01:47]} 15. Nb5 {[%emt 0:13:45]} Nxg5 {[%emt 0:13:22]} 16. Nxg5 {[%emt 0:00:25]} Re7 {[%emt 0:00:11]} 17. Nxd6 {[%emt 0:06:43]} Qxd6 {[%emt 0:01:25]} 18. Nf3 {[%emt 0:03:47]} Bc2 {[%emt 0:07:12]} 19. Rd2 {[%emt 0:03:28]} Be4 {[%emt 0:00:39]} 20. Rad1 {[%emt 0:05:41]} Bxf3 {[%emt 0:01:47]} 21. gxf3 {[%emt 0:00:02]} Qf4 {[%emt 0:00:22]} 22. Qg2 {[%emt 0:01:09]} Re1+ {[%emt 0:04:42]} 23. Bf1 {[%emt 0:01:17]} Rxd1 {[%emt 0:00:11]} 24. Rxd1 {[%emt 0:00:11]} Nxd4 {[%emt 0:00:35]} 25. Qg3 {[%emt 0:05:13]} Qxg3+ {[%emt 0:00:20]} 26. fxg3 {[%emt 0:00:04]} Nxf3+ {[%emt 0:00:09]} 27. Kf2 {[%emt 0:01:26]} Ne5 {[%emt 0:00:06]} 28. Ke3 {[%emt 0:07:45]} f6 {[%emt 0:00:28]} 29. b3 {[%emt 0:07:47]} Kf7 {[%emt 0:00:12]} 30. Bg2 {[%emt 0:00:32]} c6 {[%emt 0:00:11]} 31. Rc1 {[%emt 0:01:56]} Rd8 {[%emt 0:00:29]} 32. Bf1 {[%emt 0:00:29]} Ke7 {[%emt 0:00:43]} 33. Be2 {[%emt 0:01:04]} Rd5 {[%emt 0:00:28]} 34. b4 {[%emt 0:01:09]} Kd6 {[%emt 0:00:33]} 35. Rc3 {[%emt 0:02:58]} c5 {[%emt 0:00:34]} 36. bxc5+ {[%emt 0:06:09]} Rxc5 {[%emt 0:00:05]} 37. Rb3 {[%emt 0:00:37]} b6 {[%emt 0:00:04]} 38. Bf1 {[%emt 0:01:29]} Rc1 {[%emt 0:01:31]} 39. Ba6 {[%emt 0:01:59]} Rh1 {[%emt 0:00:52]} 40. h4 {[%emt 0:00:00]} Re1+ {[%emt 0:00:00]} 41. Kf2 {[%emt 0:02:04]} Rc1 {[%emt 0:08:26]} 42. Ke2 {[%emt 0:01:15]} Rc2+ {[%emt 0:01:33]} 43. Kd1 {[%emt 0:00:46]} Rf2 {[%emt 0:01:23]} 44. Be2 {[%emt 0:00:51]} g5 {[%emt 0:01:40]} 45. hxg5 {[%emt 0:00:29]} fxg5 {[%emt 0:00:03]} 46. Rc3 {[%emt 0:00:50]} g4 {[%emt 0:01:07]} 47. Rb3 {[%emt 0:01:23]} h5 {[%emt 0:00:40]} 48. Ke1 {[%emt 0:00:50]} Rf5 {[%emt 0:00:49]} 49. Rc3 {[%emt 0:00:39]} Nf3+ {[%emt 0:00:19]} 50. Kd1 {[%emt 0:01:47]} Rd5+ {[%emt 0:00:19]} 51. Kc1 {[%emt 0:00:04]} Rc5 {[%emt 0:00:15]} 0-1

[Event "World Senior chT-65 2019"]
[Site "Rhodes"]
[Date "2019.04.21"]
[Round "6.31"]
[White "Van Herck, Marcel"]
[Black "Kradolfer, Georg"]
[Result "1-0"]
[ECO "B12"]
[WhiteElo "2066"]
[BlackElo "2048"]
[Annotator "NA"]
[PlyCount "61"]
[EventDate "2019.04.16"]
[EventType "team-tourn"]
[EventCountry "GRE"]
[SourceTitle "playchess.com"]
[Source "ChessBase"]
[SourceQuality "1"]
[WhiteTeam "Belgium"]
[BlackTeam "Switzerland"]
[WhiteTeamCountry "BEL"]
[BlackTeamCountry "SUI"]
[TimeControl "40/5400+30:1800+30"]

1. e4 {[%emt 0:00:43]} c6 {[%emt 0:00:00]} 2. d4 {[%emt 0:00:06]} d5 {[%emt 0:00:05]} 3. e5 {[%emt 0:00:08]} Bf5 {[%emt 0:01:31]} 4. Nc3 {[%emt 0:00:20]} e6 {[%emt 0:01:57]} 5. g4 {[%emt 0:00:15]} Bg6 {[%emt 0:00:19]} 6. Nge2 {[%emt 0:00:15]} Bb4 {[%emt 0:01:10]} 7. h4 {[%emt 0:07:13]} Be4 {[%emt 0:09:16]} 8. Rh3 {[%emt 0:00:33]} h5 {[%emt 0:01:17]} 9. Ng3 {[%emt 0:00:24]} hxg4 {[%emt 0:44:43]} 10. Qxg4 {[%emt 0:00:17]} Ne7 {[%emt 0:00:30]} 11. Ngxe4 {[%emt 0:16:37]} dxe4 {[%emt 0:00:06]} 12. Qxe4 {[%emt 0:00:17]} Nf5 {[%emt 0:01:34]} 13. Bg5 {[%emt 0:00:20]} Qxd4 {[%emt 0:10:22]} 14. Qxd4 {[%emt 0:00:10]} Nxd4 {[%emt 0:00:02]} 15. O-O-O {[%emt 0:00:27]} c5 {[%emt 0:01:15]} 16. Nb5 {[%emt 0:01:36]} Ba5 {[%emt 0:05:13]} 17. Nd6+ {[%emt 0:03:38]} Kf8 {[%emt 0:00:07]} 18. Nxb7 {[%emt 0:00:27]} Bb6 {[%emt 0:00:10]} 19. c3 {[%emt 0:04:29]} Nf5 {[%emt 0:03:19]} 20. Bg2 {[%emt 0:04:44]} a5 {[%emt 0:08:01]} 21. Nd6 {[%emt 0:05:33]} Ra6 {[%emt 0:06:33]} 22. Nc8 {[%emt 0:06:50]} Kg8 {[%emt 0:01:51]} 23. Bb7 {[%emt 0:00:21]} Bc7 {[%emt 0:00:35]} 24. Bxa6 {[%emt 0:00:25]} Nxa6 {[%emt 0:00:02]} 25. Ne7+ {[%emt 0:05:34]} Kh7 {[%emt 0:01:27]} 26. Nxf5 {[%emt 0:00:31]} exf5 {[%emt 0:00:02]} 27. Rd7 {[%emt 0:05:03]} Bxe5 {[%emt 0:01:32]} 28. Rxf7 {[%emt 0:03:10]} Nb8 {[%emt 0:00:23]} 29. Rxf5 {[%emt 0:01:36]} Nc6 {[%emt 0:00:18]} 30. Re3 {[%emt 0:01:33]} Bh2 {[%emt 0:00:43]} 31. Rxc5 {[%emt 0:00:45]} 1-0

[Event "World Senior chT-65 2019"]
[Site "Rhodes"]
[Date "2019.04.21"]
[Round "6.33"]
[White "Harestad, Thor Geir"]
[Black "Andersson, Kaj"]
[Result "0-1"]
[ECO "D34"]
[WhiteElo "2200"]
[BlackElo "2030"]
[Annotator "NA"]
[PlyCount "62"]
[EventDate "2019.04.16"]
[EventType "team-tourn"]
[EventCountry "GRE"]
[SourceTitle "playchess.com"]
[Source "ChessBase"]
[SourceQuality "1"]
[WhiteTeam "Norway"]
[BlackTeam "Sweden"]
[WhiteTeamCountry "NOR"]
[BlackTeamCountry "SWE"]
[TimeControl "40/5400+30:1800+30"]

1. Nf3 {[%emt 0:00:00]} Nf6 {[%emt 0:00:00]} 2. g3 {[%emt 0:00:14]} d5 {[%emt 0:00:16]} 3. Bg2 {[%emt 0:00:09]} c5 {[%emt 0:00:49]} 4. c4 {[%emt 0:00:11]} e6 {[%emt 0:01:03]} 5. O-O {[%emt 0:00:20]} Be7 {[%emt 0:01:03]} 6. cxd5 {[%emt 0:00:26]} exd5 {[%emt 0:00:26]} 7. d4 {[%emt 0:00:14]} O-O {[%emt 0:02:17]} 8. Nc3 {[%emt 0:00:13]} Nc6 {[%emt 0:04:40]} 9. Bg5 {[%emt 0:01:16]} Re8 {[%emt 0:10:29]} 10. Rc1 {[%emt 0:04:30]} Bg4 {[%emt 0:05:58]} 11. dxc5 {[%emt 0:02:51]} d4 {[%emt 0:02:50]} 12. Nb5 {[%emt 0:04:22]} h6 {[%emt 0:08:21]} 13. Bf4 {[%emt 0:09:39]} Nd5 {[%emt 0:05:14]} 14. Nbxd4 {[%emt 0:04:58]} Nxf4 {[%emt 0:01:32]} 15. gxf4 {[%emt 0:00:46]} Nxd4 {[%emt 0:10:10]} 16. Qxd4 {[%emt 0:03:08]} Qa5 {[%emt 0:00:59]} 17. Qc4 {[%emt 0:03:26]} Be6 {[%emt 0:02:29]} 18. Qc3 {[%emt 0:00:32]} Qxa2 {[%emt 0:01:23]} 19. Nd4 {[%emt 0:01:27]} Bf6 {[%emt 0:03:50]} 20. e3 {[%emt 0:01:59]} Red8 {[%emt 0:07:12]} 21. Rfd1 {[%emt 0:01:32]} Qa4 {[%emt 0:01:34]} 22. Bxb7 {[%emt 0:06:42]} Qd7 {[%emt 0:02:11]} 23. Be4 {[%emt 0:07:05]} Bd5 {[%emt 0:02:03]} 24. c6 {[%emt 0:03:13]} Qg4+ {[%emt 0:00:22]} 25. Kf1 {[%emt 0:02:14]} Bxe4 {[%emt 0:00:40]} 26. f3 {[%emt 0:01:46]} Bxf3 {[%emt 0:01:50]} 27. Rd2 {[%emt 0:00:39]} Rac8 {[%emt 0:03:29]} 28. Qa5 {[%emt 0:03:08]} Bxd4 {[%emt 0:04:37]} 29. exd4 {[%emt 0:00:19]} Rxd4 {[%emt 0:01:01]} 30. Rf2 {[%emt 0:01:23]} Rxc6 {[%emt 0:01:15]} 31. Re1 {[%emt 0:08:11]} Qh3+ {[%emt 0:00:49]} 0-1

[Event "World Senior chT-65 2019"]
[Site "Rhodes"]
[Date "2019.04.21"]
[Round "6.34"]
[White "Gustavsson, Sture"]
[Black "Steedman, James"]
[Result "1/2-1/2"]
[ECO "D05"]
[WhiteElo "1976"]
[BlackElo "2127"]
[Annotator "NA"]
[PlyCount "23"]
[EventDate "2019.04.16"]
[EventType "team-tourn"]
[EventCountry "GRE"]
[SourceTitle "playchess.com"]
[Source "ChessBase"]
[SourceQuality "1"]
[WhiteTeam "Sweden"]
[BlackTeam "Norway"]
[WhiteTeamCountry "SWE"]
[BlackTeamCountry "NOR"]
[TimeControl "40/5400+30:1800+30"]

1. d4 {[%emt 0:00:00]} Nf6 {[%emt 0:00:00]} 2. Nf3 {[%emt 0:00:00]} e6 {[%emt 0:00:00]} 3. e3 {[%emt 0:00:00]} b6 {[%emt 0:00:32]} 4. Bd3 {[%emt 0:00:09]} Bb7 {[%emt 0:00:13]} 5. O-O {[%emt 0:00:08]} d5 {[%emt 0:00:22]} 6. b3 {[%emt 0:01:21]} Bd6 {[%emt 0:00:33]} 7. Bb2 {[%emt 0:00:05]} O-O {[%emt 0:00:14]} 8. Nbd2 {[%emt 0:00:45]} c5 {[%emt 0:00:44]} 9. Ne5 {[%emt 0:01:21]} Nc6 {[%emt 0:00:56]} 10. f4 {[%emt 0:01:56]} Rc8 {[%emt 0:02:29]} 11. c3 {[%emt 0:09:05]} Ne7 {[%emt 0:08:21]} 12. Qe2 {[%emt 0:14:00]} 1/2-1/2

[Event "World Senior chT-65 2019"]
[Site "Rhodes"]
[Date "2019.04.21"]
[Round "6.35"]
[White "Johnsen, Oystein"]
[Black "Lundgren, Ulf"]
[Result "0-1"]
[ECO "D02"]
[WhiteElo "1986"]
[BlackElo "1964"]
[Annotator "NA"]
[PlyCount "116"]
[EventDate "2019.04.16"]
[EventType "team-tourn"]
[EventCountry "GRE"]
[SourceTitle "playchess.com"]
[Source "ChessBase"]
[SourceQuality "1"]
[WhiteTeam "Norway"]
[BlackTeam "Sweden"]
[WhiteTeamCountry "NOR"]
[BlackTeamCountry "SWE"]
[TimeControl "40/5400+30:1800+30"]

1. d4 {[%emt 0:00:00]} d5 {[%emt 0:00:00]} 2. Bf4 {[%emt 0:00:00]} Nf6 {[%emt 0:00:00]} 3. e3 {[%emt 0:00:00]} c5 {[%emt 0:00:25]} 4. c3 {[%emt 0:00:00]} e6 {[%emt 0:00:30]} 5. Nd2 {[%emt 0:05:02]} Bd6 {[%emt 0:01:08]} 6. Bg3 {[%emt 0:00:10]} Nc6 {[%emt 0:03:34]} 7. Ngf3 {[%emt 0:00:22]} Nh5 {[%emt 0:06:04]} 8. Bxd6 {[%emt 0:07:43]} Qxd6 {[%emt 0:00:08]} 9. Bb5 {[%emt 0:02:22]} Nf6 {[%emt 0:02:34]} 10. Ne5 {[%emt 0:00:20]} O-O {[%emt 0:00:21]} 11. Bxc6 {[%emt 0:02:33]} bxc6 {[%emt 0:00:06]} 12. Qa4 {[%emt 0:00:05]} Bd7 {[%emt 0:04:07]} 13. Qa3 {[%emt 0:00:10]} Qb8 {[%emt 0:05:17]} 14. O-O {[%emt 0:23:06]} Be8 {[%emt 0:15:18]} 15. b3 {[%emt 0:02:32]} Qb6 {[%emt 0:12:48]} 16. dxc5 {[%emt 0:04:25]} Qc7 {[%emt 0:00:26]} 17. f4 {[%emt 0:01:49]} Nd7 {[%emt 0:01:22]} 18. Nxd7 {[%emt 0:03:18]} Bxd7 {[%emt 0:01:44]} 19. e4 {[%emt 0:01:13]} f6 {[%emt 0:05:19]} 20. Rae1 {[%emt 0:02:39]} Be8 {[%emt 0:03:54]} 21. Qb2 {[%emt 0:08:01]} Bf7 {[%emt 0:04:31]} 22. e5 {[%emt 0:02:57]} f5 {[%emt 0:01:48]} 23. Nf3 {[%emt 0:02:17]} h6 {[%emt 0:01:14]} 24. Nd4 {[%emt 0:01:42]} Rfc8 {[%emt 0:01:15]} 25. Qe2 {[%emt 0:02:35]} Qa5 {[%emt 0:00:44]} 26. b4 {[%emt 0:00:15]} Qa3 {[%emt 0:01:06]} 27. Qd2 {[%emt 0:02:02]} a5 {[%emt 0:00:45]} 28. Rf2 {[%emt 0:00:33]} Kf8 {[%emt 0:07:19]} 29. Qb2 {[%emt 0:03:35]} axb4 {[%emt 0:04:47]} 30. cxb4 {[%emt 0:00:22]} Ke7 {[%emt 0:00:25]} 31. Rb1 {[%emt 0:07:55]} Be8 {[%emt 0:00:34]} 32. Qxa3 {[%emt 0:00:15]} Rxa3 {[%emt 0:00:24]} 33. Rb3 {[%emt 0:00:15]} Rca8 {[%emt 0:00:32]} 34. Rxa3 {[%emt 0:01:03]} Rxa3 {[%emt 0:00:07]} 35. Rb2 {[%emt 0:02:18]} g5 {[%emt 0:00:50]} 36. g3 {[%emt 0:01:43]} gxf4 {[%emt 0:02:14]} 37. gxf4 {[%emt 0:00:03]} Rd3 {[%emt 0:01:01]} 38. Ne2 {[%emt 0:01:03]} Ra3 {[%emt 0:00:12]} 39. Kg2 {[%emt 0:05:27]} Kd8 {[%emt 0:01:11]} 40. Nd4 {[%emt 0:00:00]} Ke7 {[%emt 0:00:00]} 41. Nb3 {[%emt 0:03:16]} Bh5 {[%emt 0:03:47]} 42. Kg3 {[%emt 0:05:22]} Bd1 {[%emt 0:04:42]} 43. Kh4 {[%emt 0:01:26]} Ra4 {[%emt 0:03:18]} 44. Nd4 {[%emt 0:13:24]} Ra3 {[%emt 0:11:45]} 45. h3 {[%emt 0:00:15]} Ba4 {[%emt 0:00:21]} 46. b5 {[%emt 0:10:37]} cxb5 {[%emt 0:00:42]} 47. Nxb5 {[%emt 0:00:37]} Rf3 {[%emt 0:03:15]} 48. Nd6 {[%emt 0:00:35]} Bc6 {[%emt 0:06:47]} 49. Rb3 {[%emt 0:02:00]} Rxf4+ {[%emt 0:00:16]} 50. Kh5 {[%emt 0:00:01]} Ra4 {[%emt 0:01:10]} 51. Rb6 {[%emt 0:00:54]} Kd7 {[%emt 0:00:25]} 52. Rb8 {[%emt 0:00:05]} d4 {[%emt 0:01:58]} 53. Kg6 {[%emt 0:01:33]} d3 {[%emt 0:01:26]} 54. Nf7 {[%emt 0:00:34]} Bd5 {[%emt 0:00:37]} 55. Rd8+ {[%emt 0:02:45]} Kc7 {[%emt 0:00:19]} 56. Rf8 {[%emt 0:01:02]} d2 {[%emt 0:00:33]} 57. Nd6 {[%emt 0:00:25]} d1=Q {[%emt 0:00:43]} 58. Rc8+ {[%emt 0:00:03]} Kd7 {[%emt 0:00:16]} 0-1

[Event "World Senior chT-65 2019"]
[Site "Rhodes"]
[Date "2019.04.21"]
[Round "6.36"]
[White "Andersson, Sven-Olof"]
[Black "Bjorgvik, Jan Arne"]
[Result "1/2-1/2"]
[ECO "D02"]
[WhiteElo "1904"]
[BlackElo "1779"]
[Annotator "NA"]
[PlyCount "28"]
[EventDate "2019.04.16"]
[EventType "team-tourn"]
[EventCountry "GRE"]
[SourceTitle "playchess.com"]
[Source "ChessBase"]
[SourceQuality "1"]
[WhiteTeam "Sweden"]
[BlackTeam "Norway"]
[WhiteTeamCountry "SWE"]
[BlackTeamCountry "NOR"]
[TimeControl "40/5400+30:1800+30"]

1. d4 {[%emt 0:00:00]} d5 {[%emt 0:00:00]} 2. Nf3 {[%emt 0:00:00]} Nf6 {[%emt 0:00:28]} 3. Bf4 {[%emt 0:01:12]} e6 {[%emt 0:00:06]} 4. e3 {[%emt 0:00:27]} Bd6 {[%emt 0:00:38]} 5. Ne5 {[%emt 0:07:20]} O-O {[%emt 0:04:18]} 6. Bd3 {[%emt 0:01:48]} c5 {[%emt 0:03:01]} 7. c3 {[%emt 0:02:03]} Nc6 {[%emt 0:02:38]} 8. Nxc6 {[%emt 0:11:38]} bxc6 {[%emt 0:00:16]} 9. dxc5 {[%emt 0:00:34]} Bxc5 {[%emt 0:01:02]} 10. Nd2 {[%emt 0:01:45]} Bd6 {[%emt 0:01:10]} 11. Nf3 {[%emt 0:06:28]} Qc7 {[%emt 0:02:15]} 12. Bg5 {[%emt 0:04:21]} Be7 {[%emt 0:03:16]} 13. Bf4 {[%emt 0:08:49]} Bd6 {[%emt 0:00:10]} 14. Bg5 {[%emt 0:00:34]} Be7 {[%emt 0:00:11]} 1/2-1/2

[Event "World Senior chT-65 2019"]
[Site "Rhodes"]
[Date "2019.04.21"]
[Round "6.37"]
[White "Baruch, Andrew J D"]
[Black "Rantanen, Veikko"]
[Result "1-0"]
[ECO "C07"]
[WhiteElo "2039"]
[BlackElo "1971"]
[Annotator "NA"]
[PlyCount "129"]
[EventDate "2019.04.16"]
[EventType "team-tourn"]
[EventCountry "GRE"]
[SourceTitle "playchess.com"]
[Source "ChessBase"]
[SourceQuality "1"]
[WhiteTeam "England"]
[BlackTeam "Finland"]
[WhiteTeamCountry "ENG"]
[BlackTeamCountry "FIN"]
[TimeControl "40/5400+30:1800+30"]

1. e4 {[%emt 0:00:00]} e6 {[%emt 0:00:00]} 2. d4 {[%emt 0:00:00]} d5 {[%emt 0:00:00]} 3. Nd2 {[%emt 0:00:00]} c5 {[%emt 0:01:18]} 4. dxc5 {[%emt 0:00:12]} Nc6 {[%emt 0:01:00]} 5. Ngf3 {[%emt 0:02:21]} Bxc5 {[%emt 0:02:23]} 6. Bd3 {[%emt 0:00:27]} Nf6 {[%emt 0:00:54]} 7. O-O {[%emt 0:01:58]} h6 {[%emt 0:10:40]} 8. Qe2 {[%emt 0:03:40]} O-O {[%emt 0:00:40]} 9. e5 {[%emt 0:00:52]} Nd7 {[%emt 0:00:51]} 10. c4 {[%emt 0:02:23]} Nb6 {[%emt 0:05:05]} 11. cxd5 {[%emt 0:01:55]} exd5 {[%emt 0:00:07]} 12. Nb3 {[%emt 0:00:09]} Be7 {[%emt 0:01:30]} 13. Bf4 {[%emt 0:08:19]} Bg5 {[%emt 0:18:58]} 14. Bg3 {[%emt 0:03:52]} h5 {[%emt 0:06:06]} 15. h3 {[%emt 0:03:19]} g6 {[%emt 0:02:11]} 16. Nxg5 {[%emt 0:07:13]} Qxg5 {[%emt 0:00:25]} 17. h4 {[%emt 0:03:28]} Qg4 {[%emt 0:01:29]} 18. Rac1 {[%emt 0:04:26]} Qxe2 {[%emt 0:06:26]} 19. Bxe2 {[%emt 0:00:16]} Be6 {[%emt 0:02:37]} 20. Rfd1 {[%emt 0:01:08]} Nd7 {[%emt 0:03:06]} 21. f4 {[%emt 0:03:11]} Rac8 {[%emt 0:00:25]} 22. Bf2 {[%emt 0:01:26]} a6 {[%emt 0:03:27]} 23. Bf3 {[%emt 0:10:41]} Ne7 {[%emt 0:00:56]} 24. Na5 {[%emt 0:07:43]} b6 {[%emt 0:04:28]} 25. Nb7 {[%emt 0:05:03]} Rxc1 {[%emt 0:00:12]} 26. Rxc1 {[%emt 0:00:05]} Rc8 {[%emt 0:00:07]} 27. Rxc8+ {[%emt 0:00:10]} Nxc8 {[%emt 0:00:34]} 28. Be2 {[%emt 0:00:13]} b5 {[%emt 0:00:53]} 29. a4 {[%emt 0:01:12]} bxa4 {[%emt 0:00:49]} 30. Bxa6 {[%emt 0:00:18]} Ncb6 {[%emt 0:00:20]} 31. Nd6 {[%emt 0:06:38]} Nc4 {[%emt 0:01:42]} 32. Nxc4 {[%emt 0:00:39]} dxc4 {[%emt 0:00:07]} 33. Bd4 {[%emt 0:00:09]} Bd5 {[%emt 0:01:17]} 34. Bb5 {[%emt 0:00:23]} Nf8 {[%emt 0:00:06]} 35. Bxa4 {[%emt 0:00:39]} Ne6 {[%emt 0:00:26]} 36. Be3 {[%emt 0:00:11]} Kf8 {[%emt 0:00:09]} 37. Bc2 {[%emt 0:04:12]} Ng7 {[%emt 0:00:44]} 38. Bc5+ {[%emt 0:00:49]} Kg8 {[%emt 0:00:17]} 39. g3 {[%emt 0:01:44]} Nf5 {[%emt 0:00:16]} 40. Kf2 {[%emt 0:00:00]} Kg7 {[%emt 0:00:00]} 41. Bd1 {[%emt 0:03:16]} f6 {[%emt 0:01:56]} 42. Bf3 {[%emt 0:06:54]} Be6 {[%emt 0:00:11]} 43. exf6+ {[%emt 0:01:03]} Kxf6 {[%emt 0:00:11]} 44. Bb4 {[%emt 0:00:21]} Kf7 {[%emt 0:01:49]} 45. Bb7 {[%emt 0:02:48]} Kf6 {[%emt 0:03:39]} 46. Bc3+ {[%emt 0:01:41]} Kf7 {[%emt 0:00:07]} 47. Ba8 {[%emt 0:00:51]} Ke7 {[%emt 0:00:40]} 48. Kf3 {[%emt 0:00:10]} Kf7 {[%emt 0:00:11]} 49. Be1 {[%emt 0:00:38]} Kf6 {[%emt 0:29:33]} 50. Ke4 {[%emt 0:00:45]} Nd6+ {[%emt 0:00:11]} 51. Kd4 {[%emt 0:01:31]} Nb5+ {[%emt 0:06:04]} 52. Kc5 {[%emt 0:01:16]} Nc7 {[%emt 0:00:59]} 53. Be4 {[%emt 0:00:43]} Bf7 {[%emt 0:01:21]} 54. Bc3+ {[%emt 0:00:43]} Ke7 {[%emt 0:00:29]} 55. Be5 {[%emt 0:01:29]} Ne6+ {[%emt 0:02:41]} 56. Kxc4 {[%emt 0:06:15]} Nxf4+ {[%emt 0:00:14]} 57. Kb5 {[%emt 0:00:36]} Ne6 {[%emt 0:05:40]} 58. b4 {[%emt 0:00:30]} Nd8 {[%emt 0:01:04]} 59. Kb6 {[%emt 0:01:58]} Be8 {[%emt 0:03:51]} 60. b5 {[%emt 0:01:10]} Nf7 {[%emt 0:01:26]} 61. Bf4 {[%emt 0:04:52]} Nd6 {[%emt 0:01:24]} 62. Bc6 {[%emt 0:01:05]} Bf7 {[%emt 0:00:32]} 63. Kc7 {[%emt 0:00:45]} Nc4 {[%emt 0:03:36]} 64. b6 {[%emt 0:00:42]} Na5 {[%emt 0:00:37]} 65. b7 {[%emt 0:00:23]} 1-0

[Event "World Senior chT-65 2019"]
[Site "Rhodes"]
[Date "2019.04.21"]
[Round "6.38"]
[White "Ranki, Martti"]
[Black "Reuben, Stewart"]
[Result "1/2-1/2"]
[ECO "E11"]
[WhiteElo "1940"]
[BlackElo "1974"]
[Annotator "NA"]
[PlyCount "36"]
[EventDate "2019.04.16"]
[EventType "team-tourn"]
[EventCountry "GRE"]
[SourceTitle "playchess.com"]
[Source "ChessBase"]
[SourceQuality "1"]
[WhiteTeam "Finland"]
[BlackTeam "England"]
[WhiteTeamCountry "FIN"]
[BlackTeamCountry "ENG"]
[TimeControl "40/5400+30:1800+30"]

1. d4 {[%emt 0:00:00]} Nf6 {[%emt 0:25:36]} 2. c4 {[%emt 0:00:00]} e6 {[%emt 0:00:14]} 3. Nc3 {[%emt 0:00:15]} Bb4 {[%emt 0:00:29]} 4. Bd2 {[%emt 0:00:51]} c5 {[%emt 0:00:26]} 5. Nf3 {[%emt 0:01:51]} Bxc3 {[%emt 0:08:26]} 6. Bxc3 {[%emt 0:01:56]} Ne4 {[%emt 0:00:40]} 7. Qc2 {[%emt 0:00:54]} Nxc3 {[%emt 0:00:59]} 8. Qxc3 {[%emt 0:00:15]} Qf6 {[%emt 0:02:23]} 9. Rc1 {[%emt 0:06:35]} d6 {[%emt 0:07:32]} 10. g3 {[%emt 0:03:42]} Bd7 {[%emt 0:04:16]} 11. Bg2 {[%emt 0:00:46]} Bc6 {[%emt 0:00:19]} 12. dxc5 {[%emt 0:01:34]} Qxc3+ {[%emt 0:00:21]} 13. Rxc3 {[%emt 0:00:20]} dxc5 {[%emt 0:00:22]} 14. O-O {[%emt 0:00:21]} Nd7 {[%emt 0:01:52]} 15. Rd1 {[%emt 0:00:43]} Ke7 {[%emt 0:03:23]} 16. Rcd3 {[%emt 0:03:05]} Rad8 {[%emt 0:02:38]} 17. b3 {[%emt 0:04:41]} f6 {[%emt 0:01:33]} 18. h4 {[%emt 0:01:33]} Nb6 {[%emt 0:04:50]} 1/2-1/2